[Event "Titled Tuesday Blitz August 1 Late 2023"]
[White "Necromon"]
[Black "Feliz Dotel, Dewar Bienvenido"]
[BlackFideId "6402801"]
[WhiteElo "2421"]
[BlackElo "2158"]
[Result "0-1"]
[Round "4"]
[TimeControl "180+1"]
[Date "2023.08.01"]
[WhiteClock "0:00:16"]
[BlackClock "0:00:39"]
[Board "143"]

1. Nf3 {[%clk 0:03:00]}  d5 {[%clk 0:02:58]} 2. c4 {[%clk 0:02:59]}  e6 {[%clk 0:02:57]} 3. g3 {[%clk 0:02:58]}  c5 {[%clk 0:02:57]} 4. Bg2 {[%clk 0:02:56]}  Nc6 {[%clk 0:02:57]} 5. cxd5 {[%clk 0:02:54]}  exd5 {[%clk 0:02:57]} 6. O-O {[%clk 0:02:51]}  Nf6 {[%clk 0:02:57]} 7. d4 {[%clk 0:02:51]}  Be7 {[%clk 0:02:54]} 8. dxc5 {[%clk 0:02:50]}  Bxc5 {[%clk 0:02:55]} 9. Nbd2 {[%clk 0:02:50]}  O-O {[%clk 0:02:54]} 10. Nb3 {[%clk 0:02:50]}  Bb6 {[%clk 0:02:51]} 11. Bf4 {[%clk 0:02:50]}  Bg4 {[%clk 0:02:45]} 12. Qd3 {[%clk 0:02:46]}  Re8 {[%clk 0:02:42]} 13. h3 {[%clk 0:02:39]}  Bh5 {[%clk 0:02:32]} 14. Bg5 {[%clk 0:02:30]}  Bg6 {[%clk 0:02:25]} 15. Qd2 {[%clk 0:02:14]}  Qd6 {[%clk 0:02:18]} 16. Bf4 {[%clk 0:02:07]}  Qb4 {[%clk 0:02:08]} 17. Qxb4 {[%clk 0:01:59]}  Nxb4 {[%clk 0:02:07]} 18. a3 {[%clk 0:02:00]}  Nc2 {[%clk 0:01:44]} 19. Rac1 {[%clk 0:01:56]}  Rxe2 {[%clk 0:01:43]} 20. Ne5 {[%clk 0:01:24]}  Nd4 {[%clk 0:01:29]} 21. Nxd4 {[%clk 0:01:11]}  Bxd4 {[%clk 0:01:30]} 22. Nxg6 {[%clk 0:01:05]}  hxg6 {[%clk 0:01:30]} 23. b4 {[%clk 0:01:03]}  a5 {[%clk 0:01:15]} 24. Rc7 {[%clk 0:00:57]}  b6 {[%clk 0:01:11]} 25. Bf3 {[%clk 0:00:54]}  Rb2 {[%clk 0:01:07]} 26. bxa5 {[%clk 0:00:43]}  Rxa5 {[%clk 0:01:07]} 27. Bg5 {[%clk 0:00:40]}  Ne4 {[%clk 0:00:59]} 28. Bxe4 {[%clk 0:00:33]}  dxe4 {[%clk 0:01:00]} 29. Be7 {[%clk 0:00:33]}  Re5 {[%clk 0:00:45]} 30. Bb4 {[%clk 0:00:19]}  e3 {[%clk 0:00:43]} 31. fxe3 {[%clk 0:00:18]}  Rxe3 {[%clk 0:00:42]} 32. Kh1 {[%clk 0:00:18]}  Rxg3 {[%clk 0:00:40]} 33. Rcxf7 {[%clk 0:00:16]}  Rxh3# {[%clk 0:00:39]} 0-1


[Site "https://www.chess.com"]

[Event "Titled Tuesday Blitz August 1 Late 2023"]
[White "Francisco_Ferrari"]
[Black "Vega Gutierrez, Sabrina"]
[BlackFideId "2219026"]
[WhiteElo "2228"]
[BlackElo "2419"]
[Result "0-1"]
[Round "4"]
[TimeControl "180+1"]
[Date "2023.08.01"]
[WhiteClock "0:00:02"]
[BlackClock "0:00:59"]
[Board "144"]

1. e4 {[%clk 0:02:53]}  c5 {[%clk 0:02:59]} 2. Nf3 {[%clk 0:02:47]}  Nc6 {[%clk 0:03:00]} 3. Bb5 {[%clk 0:02:38]}  Nf6 {[%clk 0:02:59]} 4. Nc3 {[%clk 0:02:34]}  g6 {[%clk 0:02:59]} 5. O-O {[%clk 0:02:29]}  Bg7 {[%clk 0:02:59]} 6. Bxc6 {[%clk 0:02:26]}  dxc6 {[%clk 0:02:58]} 7. d3 {[%clk 0:02:25]}  O-O {[%clk 0:02:58]} 8. a4 {[%clk 0:02:24]}  Bg4 {[%clk 0:02:45]} 9. h3 {[%clk 0:02:20]}  Bxf3 {[%clk 0:02:44]} 10. Qxf3 {[%clk 0:02:21]}  Ne8 {[%clk 0:02:39]} 11. Be3 {[%clk 0:02:17]}  b6 {[%clk 0:02:39]} 12. a5 {[%clk 0:02:16]}  Nc7 {[%clk 0:02:39]} 13. Ne2 {[%clk 0:01:13]}  Ne6 {[%clk 0:02:38]} 14. c3 {[%clk 0:00:57]}  Qxd3 {[%clk 0:02:34]} 15. Rfd1 {[%clk 0:00:51]}  Qb5 {[%clk 0:02:33]} 16. axb6 {[%clk 0:00:43]}  axb6 {[%clk 0:02:33]} 17. Rxa8 {[%clk 0:00:44]}  Rxa8 {[%clk 0:02:33]} 18. Rd7 {[%clk 0:00:44]}  Bf8 {[%clk 0:02:21]} 19. Ng3 {[%clk 0:00:20]}  Qxb2 {[%clk 0:02:16]} 20. Nf5 {[%clk 0:00:18]}  gxf5 {[%clk 0:01:52]} 21. exf5 {[%clk 0:00:19]}  Ng7 {[%clk 0:01:45]} 22. f6 {[%clk 0:00:19]}  exf6 {[%clk 0:01:45]} 23. Qxc6 {[%clk 0:00:20]}  Ra1+ {[%clk 0:01:42]} 24. Kh2 {[%clk 0:00:20]}  Qxc3 {[%clk 0:01:42]} 25. Qxb6 {[%clk 0:00:15]}  Qe5+ {[%clk 0:01:40]} 26. g3 {[%clk 0:00:15]}  Qe4 {[%clk 0:01:39]} 27. Qb7 {[%clk 0:00:14]}  Qxb7 {[%clk 0:01:35]} 28. Rxb7 {[%clk 0:00:15]}  Ne6 {[%clk 0:01:35]} 29. Rb8 {[%clk 0:00:14]}  Kg7 {[%clk 0:01:30]} 30. Rc8 {[%clk 0:00:10]}  Ra2 {[%clk 0:01:26]} 31. Kg2 {[%clk 0:00:10]}  f5 {[%clk 0:01:26]} 32. Kf3 {[%clk 0:00:10]}  Kf6 {[%clk 0:01:22]} 33. Rc6 {[%clk 0:00:10]}  Ke5 {[%clk 0:01:22]} 34. Rc8 {[%clk 0:00:09]}  Bd6 {[%clk 0:01:18]} 35. h4 {[%clk 0:00:09]}  Nd4+ {[%clk 0:01:15]} 36. Kg2 {[%clk 0:00:08]}  Ke4 {[%clk 0:01:13]} 37. Re8+ {[%clk 0:00:06]}  Ne6 {[%clk 0:01:13]} 38. h5 {[%clk 0:00:06]}  Be5 {[%clk 0:01:10]} 39. Kh3 {[%clk 0:00:05]}  f4 {[%clk 0:01:10]} 40. gxf4 {[%clk 0:00:05]}  Bxf4 {[%clk 0:01:10]} 41. Bxf4 {[%clk 0:00:03]}  Kxf4 {[%clk 0:01:10]} 42. Re7 {[%clk 0:00:04]}  f5 {[%clk 0:01:08]} 43. Rxe6 {[%clk 0:00:04]}  Rxf2 {[%clk 0:01:05]} 44. Rc6 {[%clk 0:00:04]}  Rc2 {[%clk 0:01:05]} 45. Rc7 {[%clk 0:00:05]}  Kf3 {[%clk 0:01:02]} 46. Rxh7 {[%clk 0:00:04]}  Rc1 {[%clk 0:01:00]} 47. Kh4 {[%clk 0:00:02]}  Kf4 {[%clk 0:01:00]} 48. Rc7 {[%clk 0:00:02]}  Rh1# {[%clk 0:00:59]} 0-1


[Site "https://www.chess.com"]

[Event "Titled Tuesday Blitz August 1 Late 2023"]
[White "Kubatko, Ivan"]
[Black "Curtis, John"]
[WhiteFideId "24111473"]
[BlackFideId "3200256"]
[WhiteElo "2411"]
[BlackElo "2088"]
[Result "1/2-1/2"]
[Round "4"]
[TimeControl "180+1"]
[Date "2023.08.01"]
[WhiteClock "0:00:02"]
[BlackClock "0:00:06"]
[Board "149"]

1. e4 {[%clk 0:02:57]}  c5 {[%clk 0:02:58]} 2. c3 {[%clk 0:02:57]}  e6 {[%clk 0:02:58]} 3. d4 {[%clk 0:02:57]}  d5 {[%clk 0:02:56]} 4. exd5 {[%clk 0:02:57]}  Qxd5 {[%clk 0:02:56]} 5. Nf3 {[%clk 0:02:58]}  Nf6 {[%clk 0:02:55]} 6. Na3 {[%clk 0:02:56]}  Qd8 {[%clk 0:02:55]} 7. Nc4 {[%clk 0:02:52]}  Nc6 {[%clk 0:02:53]} 8. a3 {[%clk 0:02:45]}  cxd4 {[%clk 0:02:52]} 9. cxd4 {[%clk 0:02:45]}  Ne7 {[%clk 0:02:44]} 10. Qa4+ {[%clk 0:02:37]}  Nc6 {[%clk 0:02:38]} 11. Nce5 {[%clk 0:02:25]}  Bd7 {[%clk 0:02:37]} 12. Nxd7 {[%clk 0:02:25]}  Qxd7 {[%clk 0:02:37]} 13. Bb5 {[%clk 0:02:24]}  Bd6 {[%clk 0:02:26]} 14. O-O {[%clk 0:02:15]}  O-O {[%clk 0:02:18]} 15. Rd1 {[%clk 0:01:46]}  Rfc8 {[%clk 0:02:12]} 16. Bg5 {[%clk 0:01:39]}  Nd5 {[%clk 0:02:12]} 17. Rac1 {[%clk 0:01:38]}  a6 {[%clk 0:02:12]} 18. Bd3 {[%clk 0:01:27]}  Ne5 {[%clk 0:02:04]} 19. Qxd7 {[%clk 0:01:22]}  Nxd7 {[%clk 0:02:04]} 20. Be4 {[%clk 0:01:09]}  h6 {[%clk 0:01:58]} 21. Bd2 {[%clk 0:01:07]}  N7f6 {[%clk 0:01:48]} 22. Bd3 {[%clk 0:01:06]}  Kf8 {[%clk 0:01:47]} 23. Ne5 {[%clk 0:01:02]}  Bxe5 {[%clk 0:01:44]} 24. dxe5 {[%clk 0:01:02]}  Nd7 {[%clk 0:01:45]} 25. f4 {[%clk 0:01:02]}  g6 {[%clk 0:01:16]} 26. Be4 {[%clk 0:00:57]}  N7b6 {[%clk 0:00:49]} 27. b3 {[%clk 0:00:48]}  h5 {[%clk 0:00:41]} 28. Kf1 {[%clk 0:00:48]}  Rxc1 {[%clk 0:00:37]} 29. Rxc1 {[%clk 0:00:48]}  Rc8 {[%clk 0:00:37]} 30. Rxc8+ {[%clk 0:00:48]}  Nxc8 {[%clk 0:00:37]} 31. Ke2 {[%clk 0:00:47]}  Ke8 {[%clk 0:00:35]} 32. h3 {[%clk 0:00:40]}  Nce7 {[%clk 0:00:34]} 33. g4 {[%clk 0:00:39]}  hxg4 {[%clk 0:00:33]} 34. hxg4 {[%clk 0:00:40]}  Kd7 {[%clk 0:00:34]} 35. Kd3 {[%clk 0:00:34]}  b5 {[%clk 0:00:33]} 36. Be3 {[%clk 0:00:25]}  Nxe3 {[%clk 0:00:24]} 37. Kxe3 {[%clk 0:00:26]}  Kc7 {[%clk 0:00:24]} 38. Kd4 {[%clk 0:00:15]}  Kb6 {[%clk 0:00:23]} 39. b4 {[%clk 0:00:14]}  Nc6+ {[%clk 0:00:20]} 40. Kc3 {[%clk 0:00:15]}  g5 {[%clk 0:00:15]} 41. fxg5 {[%clk 0:00:02]}  Nxe5 {[%clk 0:00:15]} 42. Kd4 {[%clk 0:00:03]}  Nxg4 {[%clk 0:00:13]} 43. g6 {[%clk 0:00:03]}  fxg6 {[%clk 0:00:13]} 44. Bxg6 {[%clk 0:00:03]}  Nf2 {[%clk 0:00:10]} 45. Bf7 {[%clk 0:00:03]}  a5 {[%clk 0:00:10]} 46. Bxe6 {[%clk 0:00:03]}  axb4 {[%clk 0:00:09]} 47. axb4 {[%clk 0:00:04]}  Nd1 {[%clk 0:00:06]} 48. Bb3 {[%clk 0:00:02]} 1/2-1/2


[Site "https://www.chess.com"]

[Event "Titled Tuesday Blitz August 1 Late 2023"]
[White "Uzcategui Rodriguez, Alejandro"]
[Black "MrLudus"]
[WhiteFideId "3903400"]
[WhiteElo "2407"]
[BlackElo "2066"]
[Result "0-1"]
[Round "4"]
[TimeControl "180+1"]
[Date "2023.08.01"]
[WhiteClock "0:00:02"]
[BlackClock "0:00:22"]
[Board "151"]

1. e4 {[%clk 0:03:00]}  c5 {[%clk 0:02:59]} 2. Nf3 {[%clk 0:03:00]}  d6 {[%clk 0:02:59]} 3. d4 {[%clk 0:03:01]}  cxd4 {[%clk 0:03:00]} 4. Nxd4 {[%clk 0:03:01]}  Nf6 {[%clk 0:03:01]} 5. Nc3 {[%clk 0:03:02]}  a6 {[%clk 0:03:01]} 6. Bc4 {[%clk 0:03:00]}  e6 {[%clk 0:03:01]} 7. Bb3 {[%clk 0:03:00]}  b5 {[%clk 0:03:02]} 8. Qf3 {[%clk 0:02:59]}  Qc7 {[%clk 0:03:01]} 9. O-O {[%clk 0:02:59]}  Be7 {[%clk 0:02:59]} 10. Qg3 {[%clk 0:02:59]}  O-O {[%clk 0:02:59]} 11. Bh6 {[%clk 0:02:59]}  Ne8 {[%clk 0:03:00]} 12. Nf3 {[%clk 0:02:51]}  Kh8 {[%clk 0:02:47]} 13. Bf4 {[%clk 0:02:51]}  Bb7 {[%clk 0:02:38]} 14. a3 {[%clk 0:02:41]}  Nd7 {[%clk 0:02:34]} 15. Rfd1 {[%clk 0:02:39]}  Nc5 {[%clk 0:02:32]} 16. e5 {[%clk 0:02:36]}  d5 {[%clk 0:02:24]} 17. Bg5 {[%clk 0:02:25]}  Nxb3 {[%clk 0:02:23]} 18. cxb3 {[%clk 0:02:25]}  h6 {[%clk 0:02:10]} 19. Bf4 {[%clk 0:02:10]}  Rc8 {[%clk 0:02:07]} 20. Rac1 {[%clk 0:02:09]}  Qa5 {[%clk 0:02:01]} 21. b4 {[%clk 0:02:08]}  Qd8 {[%clk 0:01:57]} 22. Nd4 {[%clk 0:01:45]}  Nc7 {[%clk 0:01:50]} 23. Qe3 {[%clk 0:01:23]}  Bg5 {[%clk 0:01:44]} 24. Nf3 {[%clk 0:01:11]}  Bxf4 {[%clk 0:01:40]} 25. Qxf4 {[%clk 0:01:11]}  Qe7 {[%clk 0:01:35]} 26. Rd4 {[%clk 0:01:11]}  Na8 {[%clk 0:01:34]} 27. g4 {[%clk 0:01:06]}  g5 {[%clk 0:01:19]} 28. Qf6+ {[%clk 0:00:32]}  Qxf6 {[%clk 0:01:19]} 29. exf6 {[%clk 0:00:33]}  Nb6 {[%clk 0:01:12]} 30. Ne5 {[%clk 0:00:31]}  Rc7 {[%clk 0:01:07]} 31. Re1 {[%clk 0:00:23]}  Nc4 {[%clk 0:01:01]} 32. Nxc4 {[%clk 0:00:23]}  Rxc4 {[%clk 0:01:02]} 33. Red1 {[%clk 0:00:18]}  Kh7 {[%clk 0:00:58]} 34. Rxc4 {[%clk 0:00:16]}  bxc4 {[%clk 0:00:59]} 35. a4 {[%clk 0:00:12]}  Kg6 {[%clk 0:00:59]} 36. b5 {[%clk 0:00:13]}  Kxf6 {[%clk 0:00:54]} 37. b6 {[%clk 0:00:12]}  Rc8 {[%clk 0:00:51]} 38. a5 {[%clk 0:00:12]}  Rc5 {[%clk 0:00:50]} 39. Ra1 {[%clk 0:00:13]}  e5 {[%clk 0:00:49]} 40. Na4 {[%clk 0:00:12]}  Rb5 {[%clk 0:00:48]} 41. Kf1 {[%clk 0:00:11]}  Ke6 {[%clk 0:00:44]} 42. Nc3 {[%clk 0:00:08]}  Rxb2 {[%clk 0:00:42]} 43. Re1 {[%clk 0:00:09]}  Rb3 {[%clk 0:00:38]} 44. Ne2 {[%clk 0:00:08]}  Kd6 {[%clk 0:00:34]} 45. Ng3 {[%clk 0:00:09]}  c3 {[%clk 0:00:31]} 46. Nf5+ {[%clk 0:00:09]}  Kc5 {[%clk 0:00:31]} 47. Rxe5 {[%clk 0:00:04]}  c2 {[%clk 0:00:28]} 48. Re7 {[%clk 0:00:03]}  c1=Q+ {[%clk 0:00:28]} 49. Kg2 {[%clk 0:00:04]}  Qf4 {[%clk 0:00:22]} 50. h3 {[%clk 0:00:01]}  Qf3+ {[%clk 0:00:22]} 51. Kg1 {[%clk 0:00:02]}  Rb1+ {[%clk 0:00:22]} 52. Kh2 {[%clk 0:00:02]}  Rh1# {[%clk 0:00:22]} 0-1


[Site "https://www.chess.com"]

[Event "Titled Tuesday Blitz August 1 Late 2023"]
[White "Kazakov, Mikhail"]
[Black "Navyblue1"]
[WhiteFideId "14102749"]
[WhiteElo "2406"]
[BlackElo "1932"]
[Result "1-0"]
[Round "4"]
[TimeControl "180+1"]
[Date "2023.08.01"]
[WhiteClock "0:00:03"]
[BlackClock "0:00:02"]
[Board "153"]

1. e4 {[%clk 0:03:00]}  c5 {[%clk 0:02:59]} 2. Nf3 {[%clk 0:02:56]}  d6 {[%clk 0:02:57]} 3. d4 {[%clk 0:02:53]}  cxd4 {[%clk 0:02:57]} 4. Nxd4 {[%clk 0:02:53]}  Nf6 {[%clk 0:02:57]} 5. Nc3 {[%clk 0:02:53]}  a6 {[%clk 0:02:57]} 6. Be2 {[%clk 0:02:53]}  e5 {[%clk 0:02:56]} 7. Nf3 {[%clk 0:02:52]}  Be7 {[%clk 0:02:53]} 8. O-O {[%clk 0:02:51]}  O-O {[%clk 0:02:52]} 9. b3 {[%clk 0:02:50]}  Qc7 {[%clk 0:02:51]} 10. Bb2 {[%clk 0:02:48]}  Be6 {[%clk 0:02:50]} 11. Re1 {[%clk 0:02:44]}  Nbd7 {[%clk 0:02:50]} 12. h3 {[%clk 0:02:41]}  h6 {[%clk 0:02:49]} 13. Bf1 {[%clk 0:02:40]}  Rac8 {[%clk 0:02:40]} 14. Rc1 {[%clk 0:02:34]}  Qc6 {[%clk 0:02:26]} 15. Nh4 {[%clk 0:02:10]}  Rfe8 {[%clk 0:01:51]} 16. Nf5 {[%clk 0:02:04]}  Bxf5 {[%clk 0:01:50]} 17. exf5 {[%clk 0:02:04]}  d5 {[%clk 0:01:48]} 18. Ne2 {[%clk 0:01:58]}  Bc5 {[%clk 0:01:33]} 19. Ng3 {[%clk 0:01:51]}  b5 {[%clk 0:01:00]} 20. c4 {[%clk 0:01:44]}  dxc4 {[%clk 0:00:58]} 21. bxc4 {[%clk 0:01:43]}  b4 {[%clk 0:00:56]} 22. Bd3 {[%clk 0:01:31]}  Qb6 {[%clk 0:00:52]} 23. Qf3 {[%clk 0:01:26]}  Rcd8 {[%clk 0:00:48]} 24. Be4 {[%clk 0:01:23]}  Nxe4 {[%clk 0:00:40]} 25. Nxe4 {[%clk 0:01:24]}  Nf6 {[%clk 0:00:35]} 26. Nxf6+ {[%clk 0:01:22]}  Qxf6 {[%clk 0:00:35]} 27. Re2 {[%clk 0:01:20]}  Bd4 {[%clk 0:00:25]} 28. Bxd4 {[%clk 0:01:18]}  exd4 {[%clk 0:00:23]} 29. Rxe8+ {[%clk 0:01:16]}  Rxe8 {[%clk 0:00:23]} 30. c5 {[%clk 0:01:17]}  Qd8 {[%clk 0:00:19]} 31. c6 {[%clk 0:01:14]}  Re7 {[%clk 0:00:19]} 32. Qd3 {[%clk 0:01:10]}  Rc7 {[%clk 0:00:18]} 33. Qxa6 {[%clk 0:01:08]}  d3 {[%clk 0:00:18]} 34. Rd1 {[%clk 0:01:07]}  Qd6 {[%clk 0:00:17]} 35. Rxd3 {[%clk 0:01:02]}  Qxc6 {[%clk 0:00:17]} 36. Qxc6 {[%clk 0:00:50]}  Rxc6 {[%clk 0:00:18]} 37. Rd8+ {[%clk 0:00:48]}  Kh7 {[%clk 0:00:18]} 38. Rd2 {[%clk 0:00:49]}  Rb6 {[%clk 0:00:18]} 39. Rb2 {[%clk 0:00:48]}  Ra6 {[%clk 0:00:18]} 40. g4 {[%clk 0:00:47]}  Ra4 {[%clk 0:00:17]} 41. Kg2 {[%clk 0:00:46]}  h5 {[%clk 0:00:16]} 42. Kg3 {[%clk 0:00:45]}  Kh6 {[%clk 0:00:17]} 43. Kh4 {[%clk 0:00:40]}  hxg4 {[%clk 0:00:17]} 44. hxg4 {[%clk 0:00:40]}  f6 {[%clk 0:00:17]} 45. f4 {[%clk 0:00:40]}  g6 {[%clk 0:00:16]} 46. fxg6 {[%clk 0:00:30]}  Kxg6 {[%clk 0:00:16]} 47. f5+ {[%clk 0:00:31]}  Kh6 {[%clk 0:00:17]} 48. Rd2 {[%clk 0:00:29]}  Ra6 {[%clk 0:00:15]} 49. Rb2 {[%clk 0:00:18]}  Ra4 {[%clk 0:00:15]} 50. Re2 {[%clk 0:00:17]}  Ra6 {[%clk 0:00:15]} 51. Rd2 {[%clk 0:00:17]}  Rb6 {[%clk 0:00:12]} 52. Rb2 {[%clk 0:00:17]}  Ra6 {[%clk 0:00:11]} 53. Rxb4 {[%clk 0:00:15]}  Rxa2 {[%clk 0:00:11]} 54. Rb6 {[%clk 0:00:15]}  Kg7 {[%clk 0:00:10]} 55. Rb7+ {[%clk 0:00:15]}  Kh6 {[%clk 0:00:10]} 56. Rf7 {[%clk 0:00:14]}  Ra6 {[%clk 0:00:10]} 57. Kg3 {[%clk 0:00:14]}  Ra3+ {[%clk 0:00:09]} 58. Kh4 {[%clk 0:00:15]}  Ra6 {[%clk 0:00:09]} 59. Rf8 {[%clk 0:00:15]}  Rb6 {[%clk 0:00:09]} 60. Rh8+ {[%clk 0:00:13]}  Kg7 {[%clk 0:00:09]} 61. Re8 {[%clk 0:00:14]}  Rb1 {[%clk 0:00:08]} 62. Re7+ {[%clk 0:00:12]}  Kh6 {[%clk 0:00:08]} 63. Rf7 {[%clk 0:00:11]}  Rb6 {[%clk 0:00:08]} 64. Kg3 {[%clk 0:00:10]}  Rb3+ {[%clk 0:00:08]} 65. Kh4 {[%clk 0:00:10]}  Rb6 {[%clk 0:00:08]} 66. Rc7 {[%clk 0:00:09]}  Ra6 {[%clk 0:00:07]} 67. Rc3 {[%clk 0:00:07]}  Rd6 {[%clk 0:00:07]} 68. Re3 {[%clk 0:00:07]}  Kg7 {[%clk 0:00:05]} 69. Re7+ {[%clk 0:00:07]}  Kh6 {[%clk 0:00:05]} 70. Re6 {[%clk 0:00:06]}  Rxe6 {[%clk 0:00:05]} 71. fxe6 {[%clk 0:00:07]}  Kg6 {[%clk 0:00:05]} 72. Kg3 {[%clk 0:00:04]}  Kg7 {[%clk 0:00:04]} 73. Kf4 {[%clk 0:00:03]}  Kf8 {[%clk 0:00:04]} 74. Ke4 {[%clk 0:00:03]}  Ke8 {[%clk 0:00:04]} 75. Kd4 {[%clk 0:00:03]}  Kd8 {[%clk 0:00:05]} 76. Kc5 {[%clk 0:00:03]}  Kc7 {[%clk 0:00:04]} 77. Kd5 {[%clk 0:00:03]}  Kd8 {[%clk 0:00:04]} 78. Kd6 {[%clk 0:00:03]}  Ke8 {[%clk 0:00:02]} 79. e7 {[%clk 0:00:03]} 1-0


[Site "https://www.chess.com"]

[Event "Titled Tuesday Blitz August 1 Late 2023"]
[White "Burke, Paul"]
[Black "Der_Balak_3Halak"]
[WhiteFideId "2605767"]
[WhiteElo "1889"]
[BlackElo "2403"]
[Result "1-0"]
[Round "4"]
[TimeControl "180+1"]
[Date "2023.08.01"]
[WhiteClock "0:00:22"]
[BlackClock "0:01:37"]
[Board "155"]

1. e4 {[%clk 0:03:00]}  e6 {[%clk 0:02:59]} 2. d4 {[%clk 0:03:00]}  d5 {[%clk 0:03:00]} 3. e5 {[%clk 0:03:00]}  c5 {[%clk 0:02:59]} 4. Qg4 {[%clk 0:02:59]}  Nc6 {[%clk 0:03:00]} 5. Nf3 {[%clk 0:02:59]}  cxd4 {[%clk 0:02:59]} 6. Bd3 {[%clk 0:02:59]}  h5 {[%clk 0:02:57]} 7. Qg3 {[%clk 0:02:58]}  Qa5+ {[%clk 0:02:48]} 8. c3 {[%clk 0:02:57]}  dxc3 {[%clk 0:02:47]} 9. bxc3 {[%clk 0:02:57]}  Bd7 {[%clk 0:02:40]} 10. O-O {[%clk 0:02:56]}  g6 {[%clk 0:02:38]} 11. Re1 {[%clk 0:02:50]}  Nh6 {[%clk 0:02:37]} 12. Bxg6 {[%clk 0:02:18]}  fxg6 {[%clk 0:02:33]} 13. Qxg6+ {[%clk 0:02:18]}  Nf7 {[%clk 0:02:32]} 14. Ng5 {[%clk 0:02:14]}  Nd8 {[%clk 0:02:32]} 15. Nxf7 {[%clk 0:01:26]}  Nxf7 {[%clk 0:02:30]} 16. Bg5 {[%clk 0:01:26]}  Be7 {[%clk 0:02:18]} 17. Bxe7 {[%clk 0:01:25]}  Kxe7 {[%clk 0:02:19]} 18. Qf6+ {[%clk 0:01:24]}  Ke8 {[%clk 0:02:18]} 19. Nd2 {[%clk 0:01:21]}  Rc8 {[%clk 0:02:15]} 20. Nf3 {[%clk 0:01:18]}  Qd8 {[%clk 0:02:12]} 21. Qg7 {[%clk 0:00:59]}  Rf8 {[%clk 0:02:05]} 22. Rad1 {[%clk 0:00:47]}  Qg5 {[%clk 0:02:04]} 23. Nxg5 {[%clk 0:00:45]}  Nxg5 {[%clk 0:02:02]} 24. Qxg5 {[%clk 0:00:44]}  Rxc3 {[%clk 0:02:03]} 25. Qxh5+ {[%clk 0:00:42]}  Kd8 {[%clk 0:02:00]} 26. Rc1 {[%clk 0:00:38]}  Rc4 {[%clk 0:01:57]} 27. Rxc4 {[%clk 0:00:37]}  dxc4 {[%clk 0:01:58]} 28. Qh4+ {[%clk 0:00:37]}  Kc8 {[%clk 0:01:53]} 29. Qxc4+ {[%clk 0:00:36]}  Kb8 {[%clk 0:01:51]} 30. Qc5 {[%clk 0:00:35]}  Rg8 {[%clk 0:01:50]} 31. Qd6+ {[%clk 0:00:33]}  Kc8 {[%clk 0:01:50]} 32. f3 {[%clk 0:00:29]}  Rg6 {[%clk 0:01:41]} 33. Rc1+ {[%clk 0:00:28]}  Bc6 {[%clk 0:01:41]} 34. Qf8+ {[%clk 0:00:23]}  Kc7 {[%clk 0:01:39]} 35. Qd6+ {[%clk 0:00:23]}  Kb6 {[%clk 0:01:39]} 36. Rb1+ {[%clk 0:00:22]}  Ka6 {[%clk 0:01:37]} 37. Qa3+ {[%clk 0:00:22]} 1-0


[Site "https://www.chess.com"]

[Event "Titled Tuesday Blitz August 1 Late 2023"]
[White "Hirneise, Jens"]
[Black "Akhayan, Ruben"]
[WhiteFideId "24614734"]
[BlackFideId "204439"]
[WhiteElo "2468"]
[BlackElo "2297"]
[Result "1-0"]
[Round "4"]
[TimeControl "180+1"]
[Date "2023.08.01"]
[WhiteClock "0:00:19"]
[BlackClock "0:00:32"]
[Board "156"]

1. Nf3 {[%clk 0:03:00]}  Nf6 {[%clk 0:02:58]} 2. b3 {[%clk 0:02:59]}  e6 {[%clk 0:02:57]} 3. Bb2 {[%clk 0:02:59]}  d5 {[%clk 0:02:57]} 4. e3 {[%clk 0:02:59]}  Be7 {[%clk 0:02:58]} 5. Be2 {[%clk 0:02:58]}  O-O {[%clk 0:02:58]} 6. O-O {[%clk 0:02:59]}  c5 {[%clk 0:02:58]} 7. d3 {[%clk 0:02:58]}  Nc6 {[%clk 0:02:58]} 8. Nbd2 {[%clk 0:02:58]}  h6 {[%clk 0:02:54]} 9. a3 {[%clk 0:02:57]}  b6 {[%clk 0:02:48]} 10. c4 {[%clk 0:02:56]}  Bb7 {[%clk 0:02:49]} 11. Qc2 {[%clk 0:02:55]}  Rc8 {[%clk 0:02:48]} 12. Rad1 {[%clk 0:02:54]}  Qc7 {[%clk 0:02:47]} 13. Qb1 {[%clk 0:02:54]}  Rfd8 {[%clk 0:02:46]} 14. Qa1 {[%clk 0:02:44]}  a5 {[%clk 0:02:44]} 15. d4 {[%clk 0:02:26]}  cxd4 {[%clk 0:02:36]} 16. Nxd4 {[%clk 0:02:24]}  Nxd4 {[%clk 0:02:36]} 17. Bxd4 {[%clk 0:02:23]}  dxc4 {[%clk 0:02:30]} 18. Nxc4 {[%clk 0:02:21]}  Rxd4 {[%clk 0:01:57]} 19. Qxd4 {[%clk 0:02:09]}  b5 {[%clk 0:01:56]} 20. Ne5 {[%clk 0:02:06]}  Bxa3 {[%clk 0:01:45]} 21. Bxb5 {[%clk 0:02:02]}  Bc5 {[%clk 0:01:44]} 22. Qa1 {[%clk 0:01:55]}  Qb6 {[%clk 0:01:44]} 23. Bc4 {[%clk 0:01:45]}  Qc7 {[%clk 0:01:35]} 24. Nf3 {[%clk 0:01:31]}  Bxf3 {[%clk 0:01:34]} 25. gxf3 {[%clk 0:01:30]}  Bd6 {[%clk 0:01:30]} 26. Kh1 {[%clk 0:01:24]}  Bxh2 {[%clk 0:01:27]} 27. Qd4 {[%clk 0:01:23]}  Be5 {[%clk 0:01:22]} 28. Qh4 {[%clk 0:01:22]}  a4 {[%clk 0:01:19]} 29. f4 {[%clk 0:01:13]}  Bd6 {[%clk 0:01:17]} 30. Rg1 {[%clk 0:01:06]}  Be7 {[%clk 0:01:15]} 31. Qxh6 {[%clk 0:01:01]}  Ne8 {[%clk 0:01:10]} 32. Bd3 {[%clk 0:00:44]}  Bf6 {[%clk 0:01:03]} 33. bxa4 {[%clk 0:00:34]}  Kf8 {[%clk 0:00:57]} 34. Qh5 {[%clk 0:00:26]}  Ke7 {[%clk 0:00:55]} 35. Bb5 {[%clk 0:00:25]}  Nd6 {[%clk 0:00:53]} 36. Rc1 {[%clk 0:00:23]}  Qxc1 {[%clk 0:00:51]} 37. Rxc1 {[%clk 0:00:23]}  Rxc1+ {[%clk 0:00:51]} 38. Kg2 {[%clk 0:00:24]}  Ne4 {[%clk 0:00:47]} 39. Qf3 {[%clk 0:00:22]}  Nd6 {[%clk 0:00:40]} 40. Qa8 {[%clk 0:00:20]}  Rb1 {[%clk 0:00:37]} 41. Qa7+ {[%clk 0:00:20]}  Kf8 {[%clk 0:00:37]} 42. Qb8+ {[%clk 0:00:19]}  Ke7 {[%clk 0:00:32]} 43. Qc7+ {[%clk 0:00:19]} 1-0


[Site "https://www.chess.com"]